[Event "Eurasia Open Cup 2019"]
[Site "Ekaterinburg"]
[Date "2019.08.03"]
[Round "4.10"]
[White "Sivuk, Vitaly"]
[Black "Chekletsov, Ilya"]
[Result "1/2-1/2"]
[ECO "E15"]
[WhiteElo "2546"]
[BlackElo "2374"]
[Annotator "ChessBase"]
[PlyCount "155"]
[EventDate "2019.07.31"]
[EventType "swiss"]
[EventCountry "RUS"]
[SourceTitle "playchess.com"]
[Source "ChessBase"]
[SourceQuality "1"]
[TimeControl "5400+30"]

1. d4 {[%emt 0:02:16]} Nf6 {[%emt 0:00:00]} 2. c4 {[%emt 0:00:00]} e6 {[%emt 0:00:00]} 3. Nf3 {[%emt 0:00:00]} b6 {[%emt 0:00:00]} 4. g3 {[%emt 0:00:00]} Ba6 {[%emt 0:00:00]} 5. b3 {[%emt 0:00:07]} Bb7 {[%emt 0:00:00]} 6. Bg2 {[%emt 0:00:10]} Bb4+ {[%emt 0:00:00]} 7. Bd2 {[%emt 0:00:12]} c5 {[%emt 0:00:00]} 8. O-O {[%emt 0:07:53]} O-O {[%emt 0:00:00]} 9. dxc5 {[%emt 0:06:59]} Bxc5 {[%emt 0:01:36]} 10. Qc2 {[%emt 0:02:47]} Nc6 {[%emt 0:16:20]} 11. Rd1 {[%emt 0:04:04]} Qe7 {[%emt 0:13:37]} 12. Nc3 {[%emt 0:05:35]} d5 {[%emt 0:01:18]} 13. cxd5 {[%emt 0:16:12]} Nb4 {[%emt 0:01:35]} 14. Qb2 {[%emt 0:09:53]} Nbxd5 {[%emt 0:01:06]} 15. a3 {[%emt 0:01:53]} Nxc3 {[%emt 0:14:57]} 16. Bxc3 {[%emt 0:00:00]} Rac8 {[%emt 0:00:32]} 17. e3 {[%emt 0:11:18]} b5 {[%emt 0:03:47]} 18. a4 {[%emt 0:05:01]} a6 {[%emt 0:03:02]} 19. axb5 {[%emt 0:04:09]} axb5 {[%emt 0:00:12]} 20. Ra5 {[%emt 0:00:47]} Bc6 {[%emt 0:06:49]} 21. Ne1 {[%emt 0:03:34]} Bb4 {[%emt 0:04:58]} 22. Bxf6 {[%emt 0:03:03]} Qxf6 {[%emt 0:00:53]} 23. Qxf6 {[%emt 0:00:39]} gxf6 {[%emt 0:00:34]} 24. Ra6 {[%emt 0:00:00]} Bxg2 {[%emt 0:05:27]} 25. Nxg2 {[%emt 0:00:34]} Ra8 {[%emt 0:02:09]} 26. Rb6 {[%emt 0:00:19]} Rfb8 {[%emt 0:00:09]} 27. Rxb8+ {[%emt 0:00:40]} Rxb8 {[%emt 0:00:31]} 28. Nf4 {[%emt 0:00:10]} Kf8 {[%emt 0:00:02]} 29. Rd7 {[%emt 0:00:55]} Ke8 {[%emt 0:00:34]} 30. Ra7 {[%emt 0:00:54]} Bc5 {[%emt 0:00:00]} 31. Ra6 {[%emt 0:00:00]} Rc8 {[%emt 0:00:00]} 32. Ra5 {[%emt 0:00:01]} Rb8 {[%emt 0:02:06]} 33. Nd3 {[%emt 0:02:09]} Bd6 {[%emt 0:00:20]} 34. Kf1 {[%emt 0:01:45]} b4 {[%emt 0:00:05]} 35. Nb2 {[%emt 0:00:09]} f5 {[%emt 0:00:57]} 36. Nc4 {[%emt 0:01:03]} Be7 {[%emt 0:02:07]} 37. Ke2 {[%emt 0:00:40]} Rc8 {[%emt 0:00:04]} 38. f3 {[%emt 0:00:02]} Kf8 {[%emt 0:00:12]} 39. h3 {[%emt 0:01:22]} Rc7 {[%emt 0:00:47]} 40. g4 {[%emt 0:00:43]} fxg4 {[%emt 0:03:58]} 41. hxg4 {[%emt 0:00:15]} f6 {[%emt 0:00:04]} 42. f4 {[%emt 0:00:33]} h6 {[%emt 0:00:08]} 43. e4 {[%emt 0:00:00]} Rd7 {[%emt 0:01:10]} 44. Ra6 {[%emt 0:01:26]} Kf7 {[%emt 0:00:00]} 45. f5 {[%emt 0:02:00]} e5 {[%emt 0:00:00]} 46. Ra5 {[%emt 0:01:46]} Rd4 {[%emt 0:00:42]} 47. Ke3 {[%emt 0:00:20]} Rd1 {[%emt 0:00:58]} 48. Rd5 {[%emt 0:00:49]} Rb1 {[%emt 0:00:36]} 49. Nd2 {[%emt 0:01:37]} Rg1 {[%emt 0:00:00]} 50. Kf3 {[%emt 0:00:31]} h5 {[%emt 0:00:10]} 51. gxh5 {[%emt 0:00:36]} Rg5 {[%emt 0:00:36]} 52. Nc4 {[%emt 0:00:00]} Rxh5 {[%emt 0:00:03]} 53. Ne3 {[%emt 0:01:09]} Rh2 {[%emt 0:00:12]} 54. Rd7 {[%emt 0:01:13]} Ke8 {[%emt 0:00:38]} 55. Rb7 {[%emt 0:00:41]} Rb2 {[%emt 0:00:16]} 56. Nd5 {[%emt 0:00:00]} Rxb3+ {[%emt 0:00:12]} 57. Kg4 {[%emt 0:00:31]} Bd8 {[%emt 0:00:04]} 58. Rb8 {[%emt 0:00:10]} Kd7 {[%emt 0:00:40]} 59. Rxb4 {[%emt 0:02:09]} Rxb4 {[%emt 0:00:00]} 60. Nxb4 {[%emt 0:00:14]} Ke8 {[%emt 0:06:59]} 61. Kh5 {[%emt 0:00:02]} Kf7 {[%emt 0:00:06]} 62. Kh6 {[%emt 0:00:50]} Ba5 {[%emt 0:00:04]} 63. Nd3 {[%emt 0:00:09]} Bb6 {[%emt 0:00:40]} 64. Kh7 {[%emt 0:00:58]} Be3 {[%emt 0:00:33]} 65. Nb2 {[%emt 0:00:07]} Bb6 {[%emt 0:00:37]} 66. Nc4 {[%emt 0:00:01]} Bc5 {[%emt 0:01:12]} 67. Na5 {[%emt 0:00:11]} Bb6 {[%emt 0:00:00]} 68. Nb7 {[%emt 0:00:53]} Ke7 {[%emt 0:01:59]} 69. Kg7 {[%emt 0:00:32]} Kd7 {[%emt 0:00:09]} 70. Kxf6 {[%emt 0:00:42]} Kc7 {[%emt 0:00:04]} 71. Kxe5 {[%emt 0:00:23]} Kxb7 {[%emt 0:00:04]} 72. Kd6 {[%emt 0:01:01]} Bd4 {[%emt 0:00:03]} 73. e5 {[%emt 0:01:53]} Kc8 {[%emt 0:00:37]} 74. f6 {[%emt 0:00:30]} Kd8 {[%emt 0:00:33]} 75. f7 {[%emt 0:02:21]} Bxe5+ {[%emt 0:00:04]} 76. Kxe5 {[%emt 0:00:55]} Ke7 {[%emt 0:00:04]} 77. Kf5 {[%emt 0:00:07]} Kxf7 {[%emt 0:00:03]} 78. Ke4 {[%emt 0:00:04]} 1/2-1/2

[Event "Eurasia Open Cup 2019"]
[Site "Ekaterinburg"]
[Date "2019.08.03"]
[Round "4.11"]
[White "Afanasiev, Nikita"]
[Black "Kanter, Eduard"]
[Result "1-0"]
[ECO "A28"]
[WhiteElo "2514"]
[BlackElo "2384"]
[Annotator "ChessBase"]
[PlyCount "91"]
[EventDate "2019.07.31"]
[EventType "swiss"]
[EventCountry "RUS"]
[SourceTitle "playchess.com"]
[Source "ChessBase"]
[SourceQuality "1"]
[TimeControl "5400+30"]

1. c4 {[%emt 0:06:27]} e5 {[%emt 0:00:00]} 2. Nc3 {[%emt 0:00:20]} Nf6 {[%emt 0:00:00]} 3. Nf3 {[%emt 0:00:45]} Nc6 {[%emt 0:00:37]} 4. e3 {[%emt 0:01:30]} Bb4 {[%emt 0:01:40]} 5. Qc2 {[%emt 0:00:34]} Bxc3 {[%emt 0:05:18]} 6. Qxc3 {[%emt 0:01:04]} Qe7 {[%emt 0:00:17]} 7. b3 {[%emt 0:02:57]} d5 {[%emt 0:03:03]} 8. d4 {[%emt 0:01:03]} exd4 {[%emt 0:00:40]} 9. Nxd4 {[%emt 0:00:51]} Nxd4 {[%emt 0:00:14]} 10. Qxd4 {[%emt 0:00:06]} c5 {[%emt 0:00:35]} 11. Qb2 {[%emt 0:01:43]} O-O {[%emt 0:07:56]} 12. Be2 {[%emt 0:04:57]} dxc4 {[%emt 0:02:42]} 13. bxc4 {[%emt 0:00:55]} Rd8 {[%emt 0:05:09]} 14. O-O {[%emt 0:11:35]} Bf5 {[%emt 0:02:43]} 15. a4 {[%emt 0:09:21]} Bd3 {[%emt 0:07:58]} 16. Ra3 {[%emt 0:01:22]} Bxe2 {[%emt 0:00:36]} 17. Qxe2 {[%emt 0:00:04]} Ne4 {[%emt 0:17:47]} 18. f3 {[%emt 0:01:27]} Nd6 {[%emt 0:04:37]} 19. Rd1 {[%emt 0:00:54]} Ne8 {[%emt 0:22:57]} 20. Rad3 {[%emt 0:00:25]} Rd6 {[%emt 0:00:31]} 21. Rxd6 {[%emt 0:05:29]} Nxd6 {[%emt 0:00:48]} 22. Rd5 {[%emt 0:04:04]} Ne8 {[%emt 0:00:07]} 23. Qd3 {[%emt 0:00:02]} Nf6 {[%emt 0:05:13]} 24. Rd6 {[%emt 0:00:53]} Re8 {[%emt 0:00:00]} 25. a5 {[%emt 0:00:05]} Qe5 {[%emt 0:00:17]} 26. Bd2 {[%emt 0:06:09]} h5 {[%emt 0:01:35]} 27. e4 {[%emt 0:02:42]} Re6 {[%emt 0:00:26]} 28. Rd8+ {[%emt 0:01:32]} Re8 {[%emt 0:01:06]} 29. Bc3 {[%emt 0:00:55]} Qe7 {[%emt 0:00:22]} 30. Rd6 {[%emt 0:00:00]} b6 {[%emt 0:02:02]} 31. axb6 {[%emt 0:05:05]} axb6 {[%emt 0:02:46]} 32. Rxb6 {[%emt 0:20:52]} Rd8 {[%emt 0:00:03]} 33. Qc2 {[%emt 0:00:04]} Qc7 {[%emt 0:00:36]} 34. Rb1 {[%emt 0:01:57]} Qf4 {[%emt 0:00:56]} 35. Re1 {[%emt 0:00:42]} h4 {[%emt 0:00:12]} 36. Qf2 {[%emt 0:00:10]} Rd3 {[%emt 0:02:09]} 37. Bxf6 {[%emt 0:03:39]} Qxf6 {[%emt 0:00:11]} 38. Qxc5 {[%emt 0:00:25]} g6 {[%emt 0:00:57]} 39. e5 {[%emt 0:00:01]} Qf5 {[%emt 0:02:52]} 40. Qc6 {[%emt 0:01:04]} Qf4 {[%emt 0:00:53]} 41. Qe4 {[%emt 0:02:18]} Qd2 {[%emt 0:00:26]} 42. e6 {[%emt 0:00:23]} f5 {[%emt 0:01:06]} 43. e7 {[%emt 0:00:06]} fxe4 {[%emt 0:00:00]} 44. e8=Q+ {[%emt 0:00:51]} Kg7 {[%emt 0:00:18]} 45. Qe7+ {[%emt 0:00:08]} Kg8 {[%emt 0:00:00]} 46. Qxe4 {[%emt 0:00:00]} 1-0

[Event "Eurasia Open Cup 2019"]
[Site "Ekaterinburg"]
[Date "2019.08.03"]
[Round "4.12"]
[White "Isaev, Anton"]
[Black "Bocharov, Dmitry"]
[Result "0-1"]
[ECO "A35"]
[WhiteElo "2191"]
[BlackElo "2506"]
[Annotator "ChessBase"]
[PlyCount "60"]
[EventDate "2019.07.31"]
[EventType "swiss"]
[EventCountry "RUS"]
[SourceTitle "playchess.com"]
[Source "ChessBase"]
[SourceQuality "1"]
[TimeControl "5400+30"]

1. Nf3 {[%emt 0:00:00]} c5 {[%emt 0:00:00]} 2. e3 {[%emt 0:00:00]} g6 {[%emt 0:00:33]} 3. c4 {[%emt 0:00:00]} Bg7 {[%emt 0:00:16]} 4. Nc3 {[%emt 0:00:05]} Nf6 {[%emt 0:00:43]} 5. d4 {[%emt 0:00:06]} O-O {[%emt 0:00:41]} 6. Be2 {[%emt 0:00:08]} cxd4 {[%emt 0:03:39]} 7. Nxd4 {[%emt 0:00:30]} Nc6 {[%emt 0:00:47]} 8. O-O {[%emt 0:00:21]} d5 {[%emt 0:00:00]} 9. Nxc6 {[%emt 0:02:46]} bxc6 {[%emt 0:00:20]} 10. Qa4 {[%emt 0:00:04]} Qb6 {[%emt 0:07:29]} 11. Rd1 {[%emt 0:01:54]} Rd8 {[%emt 0:02:44]} 12. Bd2 {[%emt 0:02:55]} Bf5 {[%emt 0:06:34]} 13. cxd5 {[%emt 0:05:34]} cxd5 {[%emt 0:01:08]} 14. Qa3 {[%emt 0:04:14]} Ne4 {[%emt 0:20:32]} 15. Na4 {[%emt 0:08:33]} Qb7 {[%emt 0:02:20]} 16. Ba5 {[%emt 0:04:24]} Rdc8 {[%emt 0:00:47]} 17. Rac1 {[%emt 0:05:45]} Rxc1 {[%emt 0:14:05]} 18. Rxc1 {[%emt 0:00:08]} Rc8 {[%emt 0:00:07]} 19. b4 {[%emt 0:13:53]} d4 {[%emt 0:10:11]} 20. Nc5 {[%emt 0:11:14]} Nxc5 {[%emt 0:00:00]} 21. bxc5 {[%emt 0:00:33]} d3 {[%emt 0:01:53]} 22. Bf3 {[%emt 0:04:21]} Qb2 {[%emt 0:04:48]} 23. Qxb2 {[%emt 0:03:45]} Bxb2 {[%emt 0:00:43]} 24. Rd1 {[%emt 0:00:20]} Rxc5 {[%emt 0:01:10]} 25. Bb4 {[%emt 0:00:06]} Rc1 {[%emt 0:01:55]} 26. g4 {[%emt 0:00:31]} Be6 {[%emt 0:04:57]} 27. Kg2 {[%emt 0:06:54]} Rxd1 {[%emt 0:00:39]} 28. Bxd1 {[%emt 0:00:50]} Bxa2 {[%emt 0:00:52]} 29. Bxe7 {[%emt 0:00:06]} Bb1 {[%emt 0:00:11]} 30. Bf3 {[%emt 0:00:04]} a5 {[%emt 0:00:17]} 0-1

[Event "Eurasia Open Cup 2019"]
[Site "Ekaterinburg"]
[Date "2019.08.03"]
[Round "4.13"]
[White "Burmakin, Vladimir"]
[Black "Bublei, Pavel"]
[Result "1-0"]
[ECO "E16"]
[WhiteElo "2506"]
[BlackElo "2353"]
[Annotator "ChessBase"]
[PlyCount "67"]
[EventDate "2019.07.31"]
[EventType "swiss"]
[EventCountry "RUS"]
[SourceTitle "playchess.com"]
[Source "ChessBase"]
[SourceQuality "1"]
[TimeControl "5400+30"]

1. d4 {[%emt 0:00:00]} Nf6 {[%emt 0:08:27]} 2. c4 {[%emt 0:01:00]} e6 {[%emt 0:00:10]} 3. Nf3 {[%emt 0:00:31]} b6 {[%emt 0:05:34]} 4. g3 {[%emt 0:00:35]} Bb7 {[%emt 0:00:11]} 5. Bg2 {[%emt 0:00:05]} Bb4+ {[%emt 0:00:05]} 6. Bd2 {[%emt 0:01:25]} Bxd2+ {[%emt 0:00:30]} 7. Nbxd2 {[%emt 0:00:56]} c5 {[%emt 0:00:30]} 8. O-O {[%emt 0:01:31]} O-O {[%emt 0:00:36]} 9. Rc1 {[%emt 0:01:41]} Qc7 {[%emt 0:14:27]} 10. Nb1 {[%emt 0:00:45]} cxd4 {[%emt 0:00:52]} 11. Qxd4 {[%emt 0:00:15]} Nc6 {[%emt 0:00:10]} 12. Qh4 {[%emt 0:04:56]} Ne5 {[%emt 0:06:45]} 13. Nxe5 {[%emt 0:36:38]} Bxg2 {[%emt 0:00:10]} 14. Nxd7 {[%emt 0:00:24]} Bxf1 {[%emt 0:04:06]} 15. Nxf8 {[%emt 0:00:05]} Bxe2 {[%emt 0:09:43]} 16. Nxh7 {[%emt 0:00:10]} Nxh7 {[%emt 0:01:40]} 17. Qe4 {[%emt 0:00:05]} Rd8 {[%emt 0:27:53]} 18. Qxe2 {[%emt 0:00:05]} Rd4 {[%emt 0:00:00]} 19. h4 {[%emt 0:00:15]} g5 {[%emt 0:00:01]} 20. Nd2 {[%emt 0:17:34]} gxh4 {[%emt 0:06:21]} 21. Nf3 {[%emt 0:00:23]} Rg4 {[%emt 0:07:28]} 22. Nxh4 {[%emt 0:01:30]} Nf6 {[%emt 0:00:18]} 23. b3 {[%emt 0:00:41]} Qc5 {[%emt 0:00:05]} 24. Rc3 {[%emt 0:01:06]} Qg5 {[%emt 0:01:06]} 25. Nf3 {[%emt 0:01:16]} Qf5 {[%emt 0:01:40]} 26. Rd3 {[%emt 0:01:17]} Re4 {[%emt 0:00:29]} 27. Re3 {[%emt 0:06:16]} Rxe3 {[%emt 0:01:48]} 28. Qxe3 {[%emt 0:00:11]} Ne4 {[%emt 0:00:44]} 29. Kg2 {[%emt 0:00:04]} Kf8 {[%emt 0:00:37]} 30. Nd4 {[%emt 0:02:45]} Qg4 {[%emt 0:00:30]} 31. Qh6+ {[%emt 0:00:51]} Ke8 {[%emt 0:00:32]} 32. Qh4 {[%emt 0:03:55]} Qg6 {[%emt 0:01:12]} 33. Nc6 {[%emt 0:00:16]} Ng5 {[%emt 0:00:29]} 34. Qh8+ {[%emt 0:00:13]} 1-0

[Event "Eurasia Open Cup 2019"]
[Site "Ekaterinburg"]
[Date "2019.08.03"]
[Round "4.14"]
[White "Guseva, Marina"]
[Black "Kezin, Roman"]
[Result "1-0"]
[ECO "D45"]
[WhiteElo "2379"]
[BlackElo "2470"]
[Annotator "ChessBase"]
[PlyCount "159"]
[EventDate "2019.07.31"]
[EventType "swiss"]
[EventCountry "RUS"]
[SourceTitle "playchess.com"]
[Source "ChessBase"]
[SourceQuality "1"]
[TimeControl "5400+30"]

1. d4 {[%emt 0:00:00]} Nf6 {[%emt 0:00:41]} 2. c4 {[%emt 0:00:00]} e6 {[%emt 0:00:00]} 3. Nf3 {[%emt 0:00:00]} d5 {[%emt 0:00:11]} 4. Nc3 {[%emt 0:00:00]} c6 {[%emt 0:00:15]} 5. e3 {[%emt 0:00:00]} Nbd7 {[%emt 0:00:25]} 6. Qc2 {[%emt 0:00:00]} Bd6 {[%emt 0:01:50]} 7. b3 {[%emt 0:00:00]} O-O {[%emt 0:00:45]} 8. Bb2 {[%emt 0:00:08]} Qe7 {[%emt 0:09:29]} 9. Be2 {[%emt 0:00:00]} b6 {[%emt 0:01:49]} 10. O-O {[%emt 0:02:10]} Bb7 {[%emt 0:00:05]} 11. e4 {[%emt 0:01:30]} dxe4 {[%emt 0:03:59]} 12. Nxe4 {[%emt 0:00:05]} Nxe4 {[%emt 0:02:54]} 13. Qxe4 {[%emt 0:00:08]} Nf6 {[%emt 0:02:32]} 14. Qh4 {[%emt 0:06:15]} c5 {[%emt 0:00:54]} 15. dxc5 {[%emt 0:00:14]} Bxc5 {[%emt 0:00:00]} 16. Rad1 {[%emt 0:00:54]} Rad8 {[%emt 0:01:30]} 17. Ne5 {[%emt 0:08:34]} Ne4 {[%emt 0:41:43]} 18. Qxe7 {[%emt 0:01:36]} Bxe7 {[%emt 0:00:05]} 19. Rxd8 {[%emt 0:11:30]} Rxd8 {[%emt 0:02:33]} 20. Rd1 {[%emt 0:00:04]} Rxd1+ {[%emt 0:02:39]} 21. Bxd1 {[%emt 0:00:04]} f6 {[%emt 0:03:27]} 22. Nd3 {[%emt 0:00:14]} Kf7 {[%emt 0:08:50]} 23. Bc2 {[%emt 0:02:01]} g6 {[%emt 0:06:47]} 24. f3 {[%emt 0:00:24]} Nd6 {[%emt 0:02:13]} 25. c5 {[%emt 0:03:22]} Nf5 {[%emt 0:01:09]} 26. cxb6 {[%emt 0:00:39]} axb6 {[%emt 0:00:01]} 27. Kf2 {[%emt 0:00:58]} e5 {[%emt 0:00:16]} 28. b4 {[%emt 0:17:26]} Bd5 {[%emt 0:03:45]} 29. a3 {[%emt 0:00:29]} Nd6 {[%emt 0:00:21]} 30. Ke2 {[%emt 0:06:21]} h5 {[%emt 0:02:04]} 31. Nf2 {[%emt 0:00:47]} Nc4 {[%emt 0:00:59]} 32. Bc1 {[%emt 0:00:07]} f5 {[%emt 0:00:33]} 33. Nd1 {[%emt 0:00:45]} Be6 {[%emt 0:00:38]} 34. Ne3 {[%emt 0:01:09]} Nd6 {[%emt 0:00:35]} 35. Bb2 {[%emt 0:00:39]} e4 {[%emt 0:00:55]} 36. fxe4 {[%emt 0:01:28]} Nxe4 {[%emt 0:00:00]} 37. Bd3 {[%emt 0:04:52]} Bd6 {[%emt 0:00:00]} 38. h3 {[%emt 0:04:25]} Ng3+ {[%emt 0:00:41]} 39. Kf3 {[%emt 0:02:16]} Bc7 {[%emt 0:00:53]} 40. Bd4 {[%emt 0:07:13]} f4 {[%emt 0:00:27]} 41. Nc4 {[%emt 0:00:21]} Bd5+ {[%emt 0:00:09]} 42. Kf2 {[%emt 0:00:25]} Ne4+ {[%emt 0:01:22]} 43. Kg1 {[%emt 0:05:54]} f3 {[%emt 0:00:30]} 44. Bxb6 {[%emt 0:04:22]} Bb8 {[%emt 0:00:33]} 45. Bxe4 {[%emt 0:00:35]} Bxe4 {[%emt 0:00:01]} 46. Nd2 {[%emt 0:00:35]} Bd3 {[%emt 0:00:44]} 47. Nxf3 {[%emt 0:00:00]} Ke6 {[%emt 0:00:00]} 48. Bc5 {[%emt 0:01:58]} Kd5 {[%emt 0:00:00]} 49. a4 {[%emt 0:00:09]} Bg3 {[%emt 0:00:00]} 50. a5 {[%emt 0:03:37]} Bc7 {[%emt 0:01:13]} 51. Kf2 {[%emt 0:00:59]} Bxa5 {[%emt 0:01:00]} 52. bxa5 {[%emt 0:00:00]} Kxc5 {[%emt 0:00:33]} 53. h4 {[%emt 0:00:32]} Kb5 {[%emt 0:00:55]} 54. Ke3 {[%emt 0:00:04]} Bf1 {[%emt 0:00:00]} 55. g3 {[%emt 0:00:08]} Kxa5 {[%emt 0:00:03]} 56. Ne5 {[%emt 0:00:05]} Kb5 {[%emt 0:01:08]} 57. Nxg6 {[%emt 0:00:36]} Kc5 {[%emt 0:00:00]} 58. Nf4 {[%emt 0:00:00]} Kd6 {[%emt 0:00:27]} 59. Nxh5 {[%emt 0:00:00]} Ke5 {[%emt 0:00:05]} 60. Kf3 {[%emt 0:00:09]} Kf5 {[%emt 0:00:19]} 61. g4+ {[%emt 0:01:32]} Ke5 {[%emt 0:01:50]} 62. Nf4 {[%emt 0:00:17]} Bb5 {[%emt 0:00:00]} 63. Ke3 {[%emt 0:02:19]} Bf1 {[%emt 0:00:46]} 64. Nd3+ {[%emt 0:00:06]} Kf6 {[%emt 0:00:11]} 65. Ne1 {[%emt 0:00:04]} Kg6 {[%emt 0:01:09]} 66. Kf4 {[%emt 0:00:05]} Be2 {[%emt 0:00:00]} 67. Nf3 {[%emt 0:00:12]} Bb5 {[%emt 0:00:14]} 68. Nd4 {[%emt 0:00:59]} Ba4 {[%emt 0:00:30]} 69. h5+ {[%emt 0:00:31]} Kh6 {[%emt 0:00:09]} 70. Nf5+ {[%emt 0:00:04]} Kh7 {[%emt 0:00:03]} 71. g5 {[%emt 0:01:36]} Be8 {[%emt 0:00:02]} 72. Kg4 {[%emt 0:00:34]} Bf7 {[%emt 0:00:07]} 73. Ne7 {[%emt 0:01:31]} Be6+ {[%emt 0:00:50]} 74. Kf4 {[%emt 0:00:04]} Bc4 {[%emt 0:00:20]} 75. Kg4 {[%emt 0:01:13]} Be6+ {[%emt 0:00:42]} 76. Kh4 {[%emt 0:00:05]} Bd7 {[%emt 0:00:42]} 77. Ng6 {[%emt 0:00:34]} Kg7 {[%emt 0:00:29]} 78. Ne5 {[%emt 0:00:05]} Ba4 {[%emt 0:01:19]} 79. g6 {[%emt 0:00:11]} Kf6 {[%emt 0:00:05]} 80. Ng4+ {[%emt 0:00:04]} 1-0

[Event "Eurasia Open Cup 2019"]
[Site "Ekaterinburg"]
[Date "2019.08.03"]
[Round "4.15"]
[White "Ulybin, Mikhail"]
[Black "Ovchinnikov, Vsevolod"]
[Result "0-1"]
[ECO "B18"]
[WhiteElo "2469"]
[BlackElo "2346"]
[Annotator "ChessBase"]
[PlyCount "98"]
[EventDate "2019.07.31"]
[EventType "swiss"]
[EventCountry "RUS"]
[SourceTitle "playchess.com"]
[Source "ChessBase"]
[SourceQuality "1"]
[TimeControl "5400+30"]

1. e4 {[%emt 0:10:09]} c6 {[%emt 0:00:00]} 2. d4 {[%emt 0:02:05]} d5 {[%emt 0:00:00]} 3. Nd2 {[%emt 0:02:26]} dxe4 {[%emt 0:00:17]} 4. Nxe4 {[%emt 0:00:00]} Bf5 {[%emt 0:00:00]} 5. Ng3 {[%emt 0:01:17]} Bg6 {[%emt 0:00:00]} 6. Bc4 {[%emt 0:06:05]} e6 {[%emt 0:06:06]} 7. Nh3 {[%emt 0:04:49]} Bd6 {[%emt 0:00:57]} 8. c3 {[%emt 0:03:11]} Nd7 {[%emt 0:20:35]} 9. Qf3 {[%emt 0:17:49]} Ngf6 {[%emt 0:06:49]} 10. Nf4 {[%emt 0:01:29]} e5 {[%emt 0:10:26]} 11. Nxg6 {[%emt 0:02:44]} hxg6 {[%emt 0:00:00]} 12. Ne4 {[%emt 0:02:32]} Nb6 {[%emt 0:12:57]} 13. Bg5 {[%emt 0:10:58]} Be7 {[%emt 0:08:57]} 14. Bxf7+ {[%emt 0:22:57]} Kxf7 {[%emt 0:00:03]} 15. dxe5 {[%emt 0:00:00]} Nbd7 {[%emt 0:05:43]} 16. exf6 {[%emt 0:01:38]} Ne5 {[%emt 0:00:14]} 17. Qe2 {[%emt 0:02:32]} gxf6 {[%emt 0:01:41]} 18. Rd1 {[%emt 0:00:13]} Qc7 {[%emt 0:00:02]} 19. Bf4 {[%emt 0:00:35]} Nd3+ {[%emt 0:00:31]} 20. Qxd3 {[%emt 0:00:28]} Qxf4 {[%emt 0:04:18]} 21. h3 {[%emt 0:02:16]} f5 {[%emt 0:01:18]} 22. Nd2 {[%emt 0:03:26]} b5 {[%emt 0:00:31]} 23. O-O {[%emt 0:00:41]} Rad8 {[%emt 0:02:00]} 24. Qf3 {[%emt 0:00:29]} Bd6 {[%emt 0:07:09]} 25. Qxf4 {[%emt 0:00:23]} Bxf4 {[%emt 0:00:06]} 26. Nb3 {[%emt 0:00:36]} Rhe8 {[%emt 0:01:04]} 27. g3 {[%emt 0:00:50]} Bc7 {[%emt 0:00:01]} 28. Rxd8 {[%emt 0:00:17]} Rxd8 {[%emt 0:01:16]} 29. Re1 {[%emt 0:00:49]} Bb6 {[%emt 0:00:09]} 30. Kg2 {[%emt 0:00:08]} a5 {[%emt 0:00:06]} 31. Re2 {[%emt 0:01:00]} Rd1 {[%emt 0:00:32]} 32. Rd2 {[%emt 0:00:03]} Rb1 {[%emt 0:00:13]} 33. Rd7+ {[%emt 0:00:22]} Ke6 {[%emt 0:00:13]} 34. Rb7 {[%emt 0:00:18]} a4 {[%emt 0:06:27]} 35. Rxb6 {[%emt 0:00:17]} axb3 {[%emt 0:04:52]} 36. Rxc6+ {[%emt 0:00:15]} Kd5 {[%emt 0:00:19]} 37. Ra6 {[%emt 0:00:09]} Ra1 {[%emt 0:01:04]} 38. Ra3 {[%emt 0:00:36]} bxa2 {[%emt 0:00:01]} 39. h4 {[%emt 0:01:19]} Kc4 {[%emt 0:00:10]} 40. f3 {[%emt 0:00:09]} Kd3 {[%emt 0:00:21]} 41. Ra5 {[%emt 0:00:58]} Kc2 {[%emt 0:00:09]} 42. g4 {[%emt 0:00:35]} fxg4 {[%emt 0:01:22]} 43. fxg4 {[%emt 0:00:32]} Kxb2 {[%emt 0:00:09]} 44. Rxb5+ {[%emt 0:00:27]} Kxc3 {[%emt 0:01:03]} 45. Ra5 {[%emt 0:00:15]} Kb3 {[%emt 0:00:14]} 46. h5 {[%emt 0:00:05]} gxh5 {[%emt 0:00:11]} 47. gxh5 {[%emt 0:00:26]} Rc1 {[%emt 0:00:02]} 48. Kg3 {[%emt 0:00:57]} Rc4 {[%emt 0:00:01]} 49. h6 {[%emt 0:00:45]} Ra4 {[%emt 0:00:11]} 0-1